{"text_format":"1","workbook":"xlsx","n_sheets":2,"sheets":["Ark1","Ark2"],"not_rendered":{"charts":0,"images":2,"macros":1,"external_links":0,"defined_names":2,"comments":0,"pivot_tables":0},"unopened":[],"bounds":{"document_bytes":16777216,"sheet_cells":100000,"rows_first":2000,"rows_last":500,"rows_between":2000,"halvings":0,"cell_chars":16384,"cell_head_chars":4096},"cells_cut":0,"cells_raw":0,"read":"whole","date_system":"1900"}

{"sheet":"Ark1","index":0,"n_rows":65,"n_cols":33,"rows_kept":65,"cut":false,"hidden":false,"merged":[[1,12,3,35],[11,1,11,19],[12,1,13,5],[12,6,13,19],[7,1,7,19],[62,1,62,8],[40,1,41,35],[30,1,31,35],[60,8,61,8],[58,1,59,8],[60,1,61,7],[45,1,45,18],[45,19,45,27],[35,1,35,11],[7,20,7,35],[9,1,9,19],[9,20,9,24],[58,10,58,20],[47,19,47,27],[47,28,47,35],[53,23,53,35],[50,1,52,18],[47,1,47,12],[43,15,43,34],[20,1,21,35],[17,28,19,35],[22,23,22,35],[23,23,23,35],[25,23,25,35],[26,23,26,35],[9,25,9,35],[53,2,53,16],[14,1,15,5],[14,6,15,19],[36,16,36,35],[37,16,37,35],[45,28,45,35],[47,13,47,18],[27,23,27,35],[28,23,28,35],[22,8,23,12],[22,1,23,7],[22,13,23,17],[25,13,26,17],[27,13,28,17],[27,1,28,7],[24,13,24,17],[24,8,24,12],[27,8,28,12],[25,18,26,22],[27,18,28,22],[37,1,37,11],[37,12,37,14],[59,10,62,35],[22,18,23,22],[25,1,26,7],[38,16,38,35],[39,16,39,35],[38,1,38,11],[39,1,39,11],[38,12,38,14],[39,12,39,14],[24,18,24,22],[35,12,35,14],[36,1,36,11],[36,12,36,14],[24,1,24,7],[24,23,24,35],[25,8,26,12]]}
[null,null,null,null,null,null,null,null,null,null,null,null,null,null,null,null,null,null,null,null,null,null,null,null,null,null,null,null,null,null,null,null,"Side 1 av 2"]
[]
[]
[]
[]
[null,"Kundeinformasjon",null,null,null,null,null,null,null,null,null,null,null,null,null,null,null,null,null,null,null,null,null,null,null,"Del 1 Postens fakturagrunnlag "]
[null,"Kundenummer",null,null,null,null,null,null,null,null,null,null,null,null,null,null,null,null,null,null,"Bestillingsreferanse (maks 35 tegn)"]
[]
[null,"Kundenavn",null,null,null,null,null,null,null,null,null,null,null,null,null,null,null,null,null,null,"Telefon",null,null,null,null,"e-post"]
[]
[null,"Postadresse"]
[]
[null,"Postnummer",null,null,null,null,"Poststed"]
[]
[]
[]
[null,"Mottakere - Kryss av",null,null,null,null,null,null,null,"Hovedinnhold i sendingene - Kryss av"]
[null,null,"Bedrift",null,null,null,null,null,null,"Faktura",null,null,null,null,null,null,"Katalog/kundemag.",null,null,null,null,null,null,null,"Annet",null,null,null,"Informasjonen blir brukt til offentlig statistikk og utvikling av våre tjenester."]
[null,null,"Privat",null,null,null,null,null,null,"Dokum/meldinger",null,null,null,null,null,null,"Varer"]
[null,null,"Blandet",null,null,null,null,null,null,"Reklame/kundepl",null,null,null,null,null,null,"Blader"]
[null,"Speisfiser utsendelsen:"]
[]
[null,null,null,null,null,null,null,null,"Antall\nsendinger",null,null,null,null,"Total vekt",null,null,null,null,"Antall\nkolli"]
[]
[null,"Prissoner",null,null,null,null,null,null,"Stk",null,null,null,null,"Kilo",null,null,null,null,"Kassett, eske o.l."]
[null,"  Norge"]
[]
[null,"  Til utlandet"]
[]
[]
[]
[]
[]
[]
[]
[null,"Tillegg for ekstra store sendinger",null,null,null,null,null,null,null,null,null,null,"Antall"]
[null,"Formattillegg 1",null,null,null,null,null,null,null,null,null,null,null,null,null,">","* 2 -7 cm tykk  og størrelse inntil 35,3 x 25 cm"]
[null,"Formattillegg 2",null,null,null,null,null,null,null,null,null,null,null,null,null,">","* Tykkelse over 7 cm eller større enn 35,3 x 25 cm"]
[null,"Formattillegg 1 utland*"]
[null,"Formattillegg 2 utland*"]
[]
[]
[]
[null,"Underskrifter mv.",null,null,null,null,null,null,null,null,null,null,null,null,null,"Vilkår for Post med blandede formater gjelder, se bring.no/vilkår"]
[null,"Firmanavn ved innlevering av 3.part (trykkeri/pakningsfirma osv)",null,null,null,null,null,null,null,null,null,null,null,null,null,null,null,null,null,"Kontaktperson",null,null,null,null,null,null,null,null,"Telefon"]
[]
[null,"Sted",null,null,null,null,null,null,null,null,null,null,null,"Dato/år",null,null,null,null,null,"Sted",null,null,null,null,null,null,null,null,"Dato/år/klokkeslett"]
[]
[]
[]
[]
[]
[]
[null,null,"Navn/stempel og underskrift",null,null,null,null,null,null,null,null,null,null,null,null,null,null,null,null,null,null,null,null,"Stempel og underskrift Posten"]
[]
[]
[]
[null,"Kommentarer/korrigeringer for Posten"]
[null,"Samlet vekt av innleveringen",null,null,null,null,null,null,null,null,"Postens merknader ved avvik:",null,null,null,null,null,null,null,null,null,null,null,null,null,null,null,null,null,"Ordreseddelen er korrigert"]
[]
[null,null,null,null,null,null,null,null,"kg"]
[]
[]
[null,null,null,null,null,null,null,null,null,null,null,null,null,null,null,null,null,"Posten Norge AS, Foretaksregisteret: NO 984 661 185 MVA"]
[null,"2019 V01"]

{"sheet":"Ark2","index":1,"n_rows":67,"n_cols":34,"rows_kept":67,"cut":false,"hidden":false,"merged":[[64,1,64,8],[55,23,55,35],[30,1,31,35],[60,1,61,8],[55,2,55,16],[49,19,49,27],[38,1,38,11],[36,12,36,14],[35,1,35,11],[47,28,47,35],[39,12,39,14],[45,16,45,35],[49,28,49,35],[52,1,54,18],[49,1,49,12],[49,13,49,18],[1,12,3,35],[11,1,11,19],[12,1,13,5],[12,6,13,19],[7,1,7,19],[62,1,63,7],[47,1,47,18],[47,19,47,27],[62,8,63,8],[7,20,7,35],[9,1,9,19],[9,20,9,24],[9,25,9,35],[14,1,15,5],[14,6,15,19],[38,12,38,14],[35,12,35,14],[35,16,35,35],[17,28,19,35],[20,1,21,35],[39,1,39,11],[22,13,23,17],[22,18,23,22],[22,23,23,35],[24,23,24,35],[24,13,24,17],[24,18,24,22],[22,8,23,12],[22,1,23,7],[25,8,26,12],[27,8,28,12],[24,1,24,7],[25,1,26,7],[24,8,24,12],[25,23,26,35],[27,23,28,35],[37,12,37,14],[37,1,37,11],[37,16,37,35],[27,18,28,22],[27,1,28,7],[36,16,36,35],[25,18,26,22],[36,1,36,11],[34,1,34,11],[34,12,34,14],[25,13,26,17],[27,13,28,17]]}
[null,null,null,null,null,null,null,null,null,null,null,null,null,null,null,null,null,null,null,null,null,null,null,null,null,null,null,null,null,null,null,null,null,"Side 2 av 2"]
[]
[]
[]
[]
[null,"Kundeinformasjon",null,null,null,null,null,null,null,null,null,null,null,null,null,null,null,null,null,null,null,null,null,null,null,null,"Del 2 Kundens gjenpart"]
[null,"Kundenummer",null,null,null,null,null,null,null,null,null,null,null,null,null,null,null,null,null,null,"Bestillingreferanse (maks 35 tegn)"]
[null,{"$f":"'Ark1'!B8","v":0},null,null,null,null,null,null,null,null,null,null,null,null,null,null,null,null,null,null,{"$f":"'Ark1'!U8","v":0}]
[null,"Kundenavn",null,null,null,null,null,null,null,null,null,null,null,null,null,null,null,null,null,null,"Telefon",null,null,null,null,"e-post"]
[null,{"$f":"'Ark1'!B10","v":0},null,null,null,null,null,null,null,null,null,null,null,null,null,null,null,null,null,null,{"$f":"'Ark1'!U10","v":0},null,null,null,null,{"$f":"'Ark1'!Z10","v":0}]
[null,"Postadresse"]
[null,{"$f":"'Ark1'!B12","v":0}]
[null,"Postnummer",null,null,null,null,"Poststed"]
[]
[null,{"$f":"'Ark1'!B15","v":0},null,null,null,null,{"$f":"'Ark1'!G15","v":0}]
[]
[null,"Mottakere Kryss av",null,null,null,null,null,null,null,"Hovedinnhold i sendingene -Kryss av"]
[null,null,"Bedrift",null,null,null,{"$f":"'Ark1'!G18","v":0},null,null,"Faktura",null,null,null,null,{"$f":"'Ark1'!O18","v":0},null,"Katalog/kundemag.",null,null,null,null,null,{"$f":"'Ark1'!W18","v":0},null,"Annet",null,{"$f":"'Ark1'!AA18","v":0},null,"Informasjonen blir brukt til offentlig statistikk og utvikling av våre tjenester."]
[null,null,"Privat",null,null,null,{"$f":"'Ark1'!G19","v":0},null,null,"Dokum/meldinger",null,null,null,null,{"$f":"'Ark1'!O19","v":0},null,"Varer",null,null,null,null,null,{"$f":"'Ark1'!W19","v":0}]
[null,null,"Blandet",null,null,null,{"$f":"'Ark1'!G20","v":0},null,null,"Reklame/kundepl",null,null,null,null,{"$f":"'Ark1'!O20","v":0},null,"Blader",null,null,null,null,null,{"$f":"'Ark1'!W20","v":0}]
[null,"Spesifiser utsendelsen:"]
[]
[null,null,null,null,null,null,null,null,"Antall\nsendinger",null,null,null,null,"Total vekt",null,null,null,null,"Antall\nkolli"]
[]
[null," Prissoner",null,null,null,null,null,null,"Stk",null,null,null,null,"Kilo",null,null,null,null,"Kassett, eske o.l."]
[null,"  Norge",null,null,null,null,null,null,{"$f":"'Ark1'!I26","v":0},null,null,null,null,{"$f":"'Ark1'!N26","v":0},null,null,null,null,{"$f":"'Ark1'!S26","v":0},null,null,null,null,{"$f":"'Ark1'!X26","v":0}]
[]
[null,"  Til utlandet",null,null,null,null,null,null,{"$f":"'Ark1'!I28","v":0},null,null,null,null,{"$f":"'Ark1'!N28","v":0},null,null,null,null,{"$f":"'Ark1'!S28","v":0}]
[]
[]
[]
[]
[]
[]
[null,"Tillegg for ekstra store sendinger",null,null,null,null,null,null,null,null,null,null,"Antall"]
[null,"Formattillegg 1",null,null,null,null,null,null,null,null,null,null,null,null,null,">","2 -7 cm tykk  og størrelse inntil 35,3 x 25 cm"]
[null,"Formattillegg 1",null,null,null,null,null,null,null,null,null,null,{"$f":"'Ark1'!M37","v":0},null,null,">","* 2 -7 cm tykk  og størrelse inntil 35,3 x 25 cm"]
[null,"Formattillegg 2",null,null,null,null,null,null,null,null,null,null,{"$f":"'Ark1'!M38","v":0},null,null,">","* Tykkelse over 7 cm eller større enn 35,3 x 25 cm"]
[null,"Formattillegg 1 utland*"]
[null,"Formattillegg 2 utland*"]
[]
[]
[]
[]
[]
[null,"Underskrifter mv.",null,null,null,null,null,null,null,null,null,null,null,null,null,null,"Vilkår for Post med blandede formater gjelder, se bring.no/vilkår"]
[null,"Firmanavn ved innlevering av 3.part (trykkeri/pakningsfirma osv)",null,null,null,null,null,null,null,null,null,null,null,null,null,null,null,null,null,"Kontaktperson",null,null,null,null,null,null,null,null,"Telefon"]
[null,{"$f":"'Ark1'!B46","v":0},null,null,null,null,null,null,null,null,null,null,null,null,null,null,null,null,null,{"$f":"'Ark1'!T46","v":0},null,null,null,null,null,null,null,null,{"$f":"'Ark1'!AC46","v":0}]
[null,"Sted",null,null,null,null,null,null,null,null,null,null,null,"Dato/år",null,null,null,null,null,"Sted",null,null,null,null,null,null,null,null,"Dato/år/klokkeslett"]
[null,{"$f":"'Ark1'!B48","v":0},null,null,null,null,null,null,null,null,null,null,null,{"$f":"'Ark1'!N48","v":0},null,null,null,null,null,{"$f":"'Ark1'!T48","v":0},null,null,null,null,null,null,null,null,{"$f":"'Ark1'!AC48","v":0}]
[]
[]
[null,{"$f":"'Ark1'!B51","v":0},null,null,null,null,null,null,null,null,null,null,null,null,null,null,null,null,null,null,null,null,null,{"$f":"'Ark1'!X51","v":0}]
[]
[]
[null,null,"Navn/stempel og underskrift",null,null,null,null,null,null,null,null,null,null,null,null,null,null,null,null,null,null,null,null,"Stempel og underskrift Posten"]
[]
[]
[]
[null,"Kommentarer/korrigeringer for Posten"]
[null,"Samlet vekt av innleveringen",null,null,null,null,null,null,null,null,"Postens merknader ved avvik:",null,null,null,null,null,null,null,null,null,null,null,null,null,null,null,null,{"$f":"'Ark1'!AB59","v":0},"Ordreseddelen er korrigert"]
[null,null,null,null,null,null,null,null,null,{"$f":"'Ark1'!J60","v":0}]
[null,{"$f":"'Ark1'!B61","v":0},null,null,null,null,null,null,"kg"]
[]
[]
[null,null,null,null,null,null,null,null,null,null,null,null,null,null,null,null,null,"Posten Norge AS, Foretaksregisteret: NO 984 661 185 MVA"]
[null,"2019 V01"]